bitfinex/quotes_BTCUSD_20230113
["timestamp","ask_amount","ask_price","bid_price","bid_amount"]
[1673634655443,0.18596613,19315.0,19313.0,2.05184327]
[1673634655685,0.00012,19317.0,19314.0,0.334259]
[1673634655925,0.0479146,19316.0,19315.0,1.035464]
[1673634656400,0.0479146,19316.0,19315.0,0.517732]
[1673634657672,0.0549146,19316.0,19315.0,0.517732]
[1673634659615,0.007,19316.0,19315.0,0.517732]
[1673634659867,0.007,19316.0,19315.0,1.035464]
[1673634660328,0.007,19316.0,19315.0,1.135464]
[1673634660613,0.007,19316.0,19315.0,1.035464]
[1673634660857,0.05800734,19316.0,19315.0,1.035464]
[1673634661871,0.30670494,19316.0,19313.0,0.517765]
[1673634662126,0.21030494,19315.0,19312.0,0.517795]
[1673634662373,0.21030494,19315.0,19311.0,0.80541318]
[1673634662374,0.21030494,19315.0,19311.0,1.68726871]
[1673634662620,0.31030494,19315.0,19311.0,1.16944371]
[1673634662869,1.24578994,19315.0,19311.0,1.16925371]
[1673634663112,1.24578994,19315.0,19313.0,0.092]
[1673634663366,1.124085,19315.0,19310.0,1.37849051]
[1673634663607,0.23736694,19314.0,19311.0,0.139]
[1673634663871,0.04453767,19314.0,19310.0,1.31446643]
[1673634664129,0.77260161,19314.0,19313.0,0.141]
[1673634664380,0.56229667,19314.0,19313.0,0.141]
[1673634664873,0.58935867,19314.0,19313.0,0.141]
[1673634665120,0.07159967,19314.0,19311.0,0.617837]
[1673634665377,0.04453767,19314.0,19311.0,1.41464222]
[1673634665624,0.04453767,19314.0,19311.0,1.94727169]
[1673634665837,0.04453767,19314.0,19313.0,0.14]
[1673634666121,0.04453767,19314.0,19312.0,0.51781]
[1673634666366,0.04453767,19314.0,19312.0,0.6481644]
[1673634666367,0.04447767,19314.0,19312.0,0.6481644]
[1673634666607,0.04447767,19314.0,19313.0,0.617785]
[1673634667108,0.04447767,19314.0,19313.0,1.27557]
[1673634667861,1.045417,19317.0,19313.0,1.27605916]
[1673634668119,1.045417,19317.0,19313.0,1.65384416]
[1673634668120,0.04711118,19315.0,19313.0,1.65384416]
[1673634668366,0.52772,19317.0,19313.0,2.18591756]
[1673634668612,0.5276,19317.0,19313.0,2.18591756]
[1673634668861,0.5276,19317.0,19313.0,3.05913715]
[1673634668862,0.04506316,19316.0,19313.0,3.05913715]
[1673634669104,0.04506316,19316.0,19314.0,1.0125381]
[1673634669353,0.04506316,19316.0,19315.0,1.85369811]
[1673634670101,0.49349068,19319.0,19315.0,1.85369811]
[1673634670385,0.04838509,19318.0,19316.0,0.324326]
[1673634670624,0.04838509,19318.0,19317.0,1.13584507]
[1673634670625,0.03631802,19318.0,19317.0,1.13584507]
[1673634671129,0.49361068,19319.0,19317.0,1.13584507]
[1673634671374,0.006,19318.0,19317.0,1.03584507]
[1673634671627,0.53696841,19319.0,19317.0,1.03584507]
[1673634671890,0.04797608,19318.0,19317.0,1.03584507]
[1673634672148,0.05397608,19318.0,19317.0,1.04584507]
[1673634672365,0.05397608,19318.0,19317.0,1.14584507]
[1673634672885,0.05397608,19318.0,19317.0,1.045356]
[1673634675378,0.05397608,19318.0,19317.0,0.01]
[1673634675622,0.59868908,19318.0,19317.0,0.01]
[1673634675871,0.05397608,19318.0,19317.0,0.01]
[1673634676120,0.08103808,19318.0,19317.0,0.01]
[1673634676374,0.08103808,19318.0,19317.0,0.12251907]
[1673634676620,0.05397608,19318.0,19317.0,0.64019707]
[1673634677140,0.05397608,19318.0,19317.0,0.01]
[1673634677388,0.636241,19318.0,19317.0,0.01]
[1673634677639,0.752703,19318.0,19317.0,0.01]
[1673634677899,1.270354,19318.0,19317.0,0.01]
[1673634678141,1.265354,19318.0,19317.0,0.01]
[1673634678392,1.40991904,19318.0,19317.0,0.01]
[1673634678647,1.30991904,19318.0,19317.0,0.01]
[1673634678904,0.16202704,19318.0,19317.0,0.01]
[1673634679401,0.117462,19318.0,19317.0,0.01]
[1673634679656,1.152764,19318.0,19317.0,0.01]
[1673634679903,1.19723558,19318.0,19317.0,0.01]
[1673634680402,1.20282663,19318.0,19317.0,0.01]
[1673634680659,0.59577563,19318.0,19317.0,0.01]
[1673634681157,0.05106263,19318.0,19317.0,0.12203]
[1673634681409,0.05106263,19318.0,19317.0,0.639708]
[1673634686595,0.05106263,19318.0,19317.0,0.79349847]
[1673634686842,0.32389494,19318.0,19317.0,1.19914647]
[1673634687089,0.32389494,19318.0,19317.0,0.01]
[1673634687090,0.140652,19318.0,19317.0,0.01]
[1673634687333,1.693605,19318.0,19317.0,0.01]
[1673634687580,2.90973359,19318.0,19317.0,0.01]
[1673634687873,2.72927402,19318.0,19317.0,0.01]
[1673634688378,3.02927402,19318.0,19317.0,0.01]
[1673634692336,3.20797402,19318.0,19317.0,0.01]
[1673634695341,3.78630451,19318.0,19317.0,0.01]
[1673634695598,4.393435,19318.0,19317.0,0.00036137]
[1673634695842,5.59278759,19318.0,19317.0,0.00036137]
[1673634696090,3.90792691,19318.0,19317.0,0.00036137]
[1673634696343,3.41899673,19318.0,19317.0,0.00036137]
[1673634696591,3.93889673,19318.0,19317.0,0.00036137]
[1673634696841,3.25767402,19318.0,19317.0,0.00036137]
[1673634697084,0.1,19317.0,19314.0,0.15379047]
[1673634697362,2.07107902,19316.0,19314.0,0.15379047]
[1673634697605,1.06273102,19315.0,19314.0,0.15379047]
[1673634698601,1.58046302,19315.0,19314.0,0.15379047]
[1673634699340,1.55340102,19315.0,19314.0,0.15379047]
[1673634699583,1.58046302,19315.0,19314.0,0.15379047]
[1673634699825,2.09819502,19315.0,19314.0,0.15379047]
[1673634700069,2.07113302,19315.0,19314.0,0.15379047]
[1673634700283,2.13630829,19315.0,19314.0,0.15379047]
[1673634700748,1.59151429,19315.0,19314.0,0.38447943]
[1673634700985,1.74357629,19315.0,19314.0,0.38947943]
[1673634701244,1.71651429,19315.0,19314.0,0.38447943]
[1673634701489,1.75746302,19315.0,19314.0,0.15979047]
[1673634701753,2.09819502,19315.0,19314.0,0.15379047]
[1673634702035,2.09819502,19315.0,19314.0,0.18079047]
[1673634702036,2.10319502,19315.0,19314.0,0.18079047]
[1673634702282,2.14051819,19315.0,19314.0,0.18079047]
[1673634702525,2.10319502,19315.0,19314.0,0.18079047]
[1673634702778,2.11926351,19315.0,19314.0,0.18079047]
[1673634703081,1.58546302,19315.0,19314.0,0.18079047]
[1673634703546,2.07613302,19315.0,19314.0,0.18079047]
[1673634703839,2.10319502,19315.0,19314.0,0.027]
[1673634704057,2.47613302,19315.0,19314.0,0.027]
[1673634704368,2.10319502,19315.0,19314.0,0.027]
[1673634704798,2.10319502,19315.0,19314.0,0.18079047]
[1673634705029,2.07613302,19315.0,19314.0,0.18079047]
[1673634705268,2.10319502,19315.0,19314.0,0.027]
[1673634705516,2.10319502,19315.0,19314.0,0.18079047]
[1673634705741,2.07613302,19315.0,19314.0,0.027]
[1673634705988,1.6358045,19315.0,19314.0,0.027]
[1673634706219,1.6358045,19315.0,19314.0,0.18079047]
[1673634706706,1.6087425,19315.0,19314.0,0.18079047]
[1673634706938,1.6358045,19315.0,19314.0,0.18079047]
[1673634708236,1.6358045,19315.0,19314.0,0.41147943]
[1673634708455,1.6353045,19315.0,19314.0,0.41147943]
[1673634709193,1.7353045,19315.0,19314.0,0.41147943]
[1673634709431,1.6353045,19315.0,19314.0,0.41147943]
[1673634710167,1.6353045,19315.0,19314.0,0.18079047]
[1673634710916,1.6353045,19315.0,19314.0,0.41147943]
[1673634711161,1.6353045,19315.0,19314.0,0.18079047]
[1673634711637,1.6353045,19315.0,19314.0,0.41147943]
[1673634712657,1.6082425,19315.0,19314.0,0.41147943]
[1673634712904,1.6353045,19315.0,19314.0,0.41147943]
[1673634713148,1.1175725,19315.0,19314.0,0.41147943]
[1673634713646,1.1175725,19315.0,19314.0,0.25768896]
[1673634714142,1.0905105,19315.0,19314.0,0.56525619]
[1673634714818,1.0905105,19315.0,19314.0,0.33456723]
[1673634715071,1.0905105,19315.0,19314.0,0.71902627]
[1673634715541,1.0905105,19315.0,19314.0,0.33456723]
[1673634715797,1.0905105,19315.0,19314.0,0.71902627]
[1673634716044,1.0905105,19315.0,19314.0,0.33456723]
[1673634716292,1.0905105,19315.0,19314.0,0.71902627]
[1673634716823,3.10366996,19315.0,19314.0,0.027]
[1673634717115,2.92042702,19315.0,19314.0,0.027]
[1673634720415,2.92042702,19315.0,19314.0,0.02686047]
[1673634720907,2.92022702,19315.0,19314.0,0.02686047]
[1673634722143,2.91522702,19315.0,19312.0,0.15458472]
[1673634722386,2.91522702,19315.0,19312.0,0.3864618]
[1673634722387,0.1894,19314.0,19312.0,0.3864618]
[1673634722629,1.175222,19313.0,19312.0,0.3864618]
[1673634723120,1.275222,19313.0,19312.0,0.3864618]
[1673634723385,1.275222,19313.0,19312.0,0.15458472]
[1673634723879,1.397222,19313.0,19312.0,0.15858472]
[1673634724870,1.697222,19313.0,19312.0,0.15858472]
[1673634725352,1.397222,19313.0,19312.0,0.15858472]
[1673634726326,1.34526784,19313.0,19312.0,0.15858472]
[1673634726571,1.297222,19313.0,19312.0,0.3904618]
[1673634727077,1.397222,19313.0,19312.0,0.3904618]
[1673634727318,1.23479386,19313.0,19312.0,0.54344431]
[1673634727573,0.19922386,19313.0,19312.0,0.38845904]
[1673634727821,0.17216186,19313.0,19312.0,0.38845904]
[1673634728076,0.17216186,19313.0,19312.0,0.004]
[1673634728321,0.17216186,19313.0,19312.0,0.11603]
[1673634728585,0.122,19313.0,19312.0,0.521812]
[1673634728837,1.17478619,19313.0,19312.0,0.31330631]
[1673634729107,1.50184819,19313.0,19312.0,0.15868842]
[1673634729354,1.60184819,19313.0,19312.0,0.004]
[1673634729603,2.11963319,19313.0,19312.0,0.004]
[1673634730851,2.29783319,19313.0,19312.0,0.004]
[1673634733046,2.280617,19313.0,19312.0,0.004]
[1673634735106,2.280017,19313.0,19312.0,0.004]
[1673634740992,3.22721833,19313.0,19312.0,0.004]
[1673634743047,2.26920926,19313.0,19312.0,0.004]
[1673634743297,2.26920926,19313.0,19312.0,0.00442754]
[1673634743539,2.2428991,19313.0,19312.0,0.004]
[1673634744280,2.2699611,19313.0,19312.0,0.004]
[1673634744535,2.2428991,19313.0,19312.0,0.004]
[1673634745023,2.19297133,19313.0,19312.0,0.004]
[1673634745271,2.2313395,19313.0,19312.0,0.004]
[1673634747021,2.2313395,19313.0,19312.0,0.15868842]
[1673634747761,2.2313395,19313.0,19312.0,0.004]
[1673634748017,1.7135545,19313.0,19312.0,0.15868842]
[1673634748532,1.1957695,19313.0,19312.0,1.15180261]
[1673634748857,1.0743695,19313.0,19312.0,1.14780261]
[1673634749098,1.1303695,19313.0,19312.0,1.15380261]
[1673634749346,1.1303695,19313.0,19312.0,2.15057874]
[1673634749595,1.1303695,19313.0,19312.0,1.99539532]
[1673634749843,1.1303695,19313.0,19312.0,1.67103432]
[1673634750091,1.1303695,19313.0,19312.0,1.43963031]
[1673634750342,1.1303695,19313.0,19312.0,1.67106578]
[1673634750598,1.1303695,19313.0,19312.0,1.67108434]
[1673634751107,1.1203695,19313.0,19312.0,1.82621774]
[1673634751353,1.1203695,19313.0,19312.0,1.77108947]
[1673634751600,1.08200133,19313.0,19312.0,2.25057874]
[1673634751850,1.08200133,19313.0,19312.0,2.24989002]
[1673634752098,1.11928827,19313.0,19312.0,2.24989002]
[1673634752596,1.11928827,19313.0,19312.0,1.82595656]
[1673634753580,1.11928827,19313.0,19312.0,1.43936913]
[1673634754079,1.11928827,19313.0,19312.0,1.6708582]
[1673634754564,1.11928827,19313.0,19312.0,1.82595656]
[1673634754806,1.11928827,19313.0,19312.0,1.15310201]
[1673634755781,1.11928827,19313.0,19312.0,1.77091401]
[1673634756070,1.08200133,19313.0,19312.0,2.01535656]
[1673634756314,1.08200133,19313.0,19312.0,2.62414122]
[1673634756559,1.08200133,19313.0,19312.0,3.24444857]
[1673634757284,1.08200133,19313.0,19312.0,3.14444857]
[1673634757525,1.08200133,19313.0,19312.0,2.05732454]
[1673634757526,1.11796458,19313.0,19312.0,2.05732454]
[1673634758032,1.11796458,19313.0,19312.0,2.15732454]
[1673634758284,1.11796458,19313.0,19312.0,2.05732454]
[1673634759102,1.08200133,19313.0,19312.0,3.2863405]
[1673634759593,1.08200133,19313.0,19312.0,2.82452382]
[1673634760280,1.08200133,19313.0,19312.0,3.2863405]
[1673634760752,1.08200133,19313.0,19312.0,2.72452382]
[1673634761561,1.1322911,19313.0,19312.0,2.44244798]
[1673634762283,1.1322911,19313.0,19312.0,2.056897]
[1673634762530,1.1322911,19313.0,19312.0,2.156897]
[1673634763464,1.1322911,19313.0,19312.0,2.05774897]
[1673634765471,1.1322911,19313.0,19312.0,2.44305036]
[1673634765714,1.1322911,19313.0,19312.0,2.44219839]
[1673634766207,1.08200133,19313.0,19312.0,2.056897]
[1673634766447,1.08200133,19313.0,19312.0,2.156897]
[1673634766448,0.056,19313.0,19312.0,2.156897]
[1673634766694,0.056,19313.0,19312.0,2.056897]
[1673634767189,0.09245626,19313.0,19312.0,2.44219455]
[1673634768719,0.09245626,19313.0,19312.0,1.39043604]
[1673634768971,0.09245626,19313.0,19312.0,0.54541666]
[1673634769968,0.09245626,19313.0,19312.0,0.23719017]
[1673634770473,0.09245626,19313.0,19312.0,0.39133889]
[1673634770720,0.09245626,19313.0,19312.0,0.23719017]
[1673634770963,0.09207626,19313.0,19312.0,0.39135129]
[1673634771454,1.12787278,19313.0,19312.0,0.39135129]
[1673634771701,1.12787278,19313.0,19312.0,0.23719017]
[1673634772960,1.12787278,19313.0,19312.0,0.54541666]
[1673634773203,1.12787278,19313.0,19312.0,0.23719017]
[1673634773979,1.12787278,19313.0,19312.0,0.39139644]
[1673634774193,1.12787278,19313.0,19312.0,0.54541666]
[1673634774652,1.09141652,19313.0,19312.0,0.16021814]
[1673634774885,1.1415766,19313.0,19312.0,0.16021814]
[1673634776105,1.2415766,19313.0,19312.0,0.16021814]
[1673634776353,1.09141652,19313.0,19312.0,0.16021814]
[1673634777080,1.11847852,19313.0,19312.0,0.16021814]
[1673634777321,1.14188428,19313.0,19312.0,0.16021814]
[1673634777558,1.14188428,19313.0,19312.0,0.3915636]
[1673634779322,1.14188428,19313.0,19312.0,0.23734546]
[1673634780041,1.14188428,19313.0,19312.0,0.54557195]
[1673634780559,1.14188428,19313.0,19312.0,0.23734546]
[1673634780805,1.14161188,19313.0,19312.0,0.39166286]
[1673634781048,1.60920152,19313.0,19312.0,0.39166286]
[1673634781807,1.65611418,19313.0,19312.0,0.39166286]
[1673634782052,1.63626352,19313.0,19312.0,0.39166286]
[1673634782305,1.73626352,19313.0,19312.0,0.39166286]
[1673634782762,1.78464553,19313.0,19312.0,0.54557195]
[1673634783008,2.25404852,19313.0,19312.0,0.39173393]
[1673634783763,3.22200024,19313.0,19312.0,0.006]
[1673634784062,3.71112272,19313.0,19312.0,0.006]
[1673634784555,3.7110776,19313.0,19312.0,0.006]
[1673634785272,3.22200024,19313.0,19312.0,0.006]
[1673634785512,3.7113033,19313.0,19312.0,0.006]
[1673634785767,3.71130113,19313.0,19312.0,0.006]
[1673634786490,3.22200024,19313.0,19312.0,0.006]
[1673634786754,3.7113009,19313.0,19312.0,0.006]
[1673634787473,3.8008009,19313.0,19312.0,0.006]
[1673634787711,5.35433792,19313.0,19312.0,0.006]
[1673634787984,3.8093009,19313.0,19312.0,0.006]
[1673634788454,3.8093009,19313.0,19311.0,0.00723136]
[1673634788455,3.7536809,19313.0,19311.0,0.00723136]
[1673634788698,2.00391098,19312.0,19311.0,0.00723136]
[1673634788943,3.59290898,19312.0,19311.0,0.00723136]
[1673634789699,3.59290898,19312.0,19311.0,0.00823136]
[1673634789945,4.11914168,19312.0,19311.0,0.00823136]
[1673634790212,4.81914169,19312.0,19311.0,0.00823136]
[1673634790461,4.81914169,19312.0,19311.0,0.00723136]
[1673634790706,5.4784827,19312.0,19311.0,0.00823136]
[1673634790951,5.4784827,19312.0,19311.0,0.00029745]
[1673634790952,7.27650973,19312.0,19311.0,0.00029745]
[1673634792216,7.12151972,19312.0,19311.0,0.00029745]
[1673634792464,7.27650973,19312.0,19311.0,7.45e-06]
[1673634792962,7.12151972,19312.0,19311.0,7.45e-06]
[1673634797007,6.82151972,19312.0,19311.0,7.45e-06]
[1673634797218,6.86191891,19312.0,19311.0,7.45e-06]
[1673634797433,6.82151972,19312.0,19311.0,7.45e-06]
[1673634797928,6.86039733,19312.0,19311.0,7.45e-06]
[1673634798159,7.12151972,19312.0,19311.0,7.45e-06]
[1673634798403,7.15797514,19312.0,19311.0,7.45e-06]
[1673634798677,7.15774379,19312.0,19311.0,7.45e-06]
[1673634799190,7.12151972,19312.0,19311.0,7.45e-06]
[1673634800170,7.58660973,19312.0,19311.0,7.45e-06]
[1673634800417,7.81884273,19312.0,19311.0,7.45e-06]
[1673634800668,5.255e-05,19310.0,19308.0,0.0073587]
[1673634800917,2.071572,19309.0,19308.0,0.0073587]
[1673634801208,4.78094065,19309.0,19308.0,0.0073587]
[1673634801450,5.98366145,19309.0,19308.0,0.0073587]
[1673634801654,4.02991684,19309.0,19308.0,0.0073587]
[1673634801934,4.72991685,19309.0,19308.0,0.0083587]
[1673634802174,5.2196703,19309.0,19308.0,0.0083587]
[1673634802418,5.2196703,19309.0,19308.0,0.0073587]
[1673634802672,5.74301131,19309.0,19308.0,0.0073587]
[1673634803173,7.29654833,19309.0,19308.0,0.0073587]
[1673634803417,5.58345386,19309.0,19308.0,0.0073587]
[1673634803668,3.76617821,19309.0,19308.0,0.0073587]
[1673634803909,3.29378521,19309.0,19308.0,0.0083587]
[1673634804203,3.29654953,19309.0,19308.0,0.0083587]
[1673634804447,2.79934953,19309.0,19308.0,0.0083587]
[1673634804950,2.28145653,19309.0,19308.0,0.0083587]
[1673634805452,1.76356353,19309.0,19308.0,0.0083587]
[1673634806208,1.73650153,19309.0,19308.0,0.0083587]
[1673634807738,1.68897584,19309.0,19308.0,0.0083587]
[1673634807984,1.76490839,19309.0,19308.0,0.0083587]
[1673634808225,1.73784639,19309.0,19308.0,0.0083587]
[1673634808472,1.68897584,19309.0,19308.0,0.0083587]
[1673634808733,1.72725685,19309.0,19308.0,0.0083587]
[1673634808951,1.68897584,19309.0,19308.0,0.0083587]
[1673634809980,1.73367631,19309.0,19308.0,0.0083587]
[1673634810221,1.68897584,19309.0,19308.0,0.0083587]
[1673634810728,1.73807537,19309.0,19308.0,0.0083587]
[1673634811196,2.78425803,19309.0,19308.0,0.0083587]
[1673634811450,3.53951797,19309.0,19308.0,0.0083587]
[1673634811694,3.32921303,19309.0,19308.0,0.0083587]
[1673634812908,3.05182384,19309.0,19308.0,0.0083587]
[1673634814949,3.06032384,19309.0,19308.0,0.0083587]
[1673634820659,3.21531385,19309.0,19308.0,0.0083587]
[1673634821147,3.06032384,19309.0,19308.0,0.0083587]
[1673634824070,3.21531385,19309.0,19308.0,0.00824566]
[1673634824508,3.70506485,19309.0,19308.0,0.00824566]
[1673634824531,3.93729785,19309.0,19308.0,0.00824566]
[1673634824811,4.36479522,19309.0,19308.0,0.00824566]
[1673634825558,0.1,19308.0,19304.0,0.34688635]
[1673634825803,2.80024378,19307.0,19304.0,0.15438847]
[1673634826044,1.46314484,19306.0,19304.0,0.15438847]
[1673634826293,2.07208284,19305.0,19304.0,0.15438847]
[1673634826560,2.09914484,19305.0,19303.0,0.51849172]
[1673634826871,0.61030494,19304.0,19303.0,0.28714626]
[1673634827110,0.61030494,19304.0,19303.0,0.04355779]
[1673634827111,1.46314484,19304.0,19303.0,0.04355779]
[1673634827379,3.01722584,19304.0,19303.0,0.04355779]
[1673634828132,3.03322584,19304.0,19303.0,0.04355779]
[1673634828407,3.01722584,19304.0,19303.0,0.04355779]
[1673634828660,3.25092994,19304.0,19303.0,0.04355779]
[1673634832556,3.11922584,19304.0,19303.0,0.04355779]
[1673634836712,2.50119884,19304.0,19303.0,0.04355779]
[1673634836970,1.16514484,19304.0,19303.0,0.04355779]
[1673634837218,1.21031902,19304.0,19303.0,0.19794626]
[1673634837472,1.13808284,19304.0,19303.0,0.19794626]
[1673634837674,1.17991292,19304.0,19303.0,0.19794626]
[1673634838203,1.13808284,19304.0,19303.0,0.42929172]
[1673634838444,1.18740805,19304.0,19303.0,0.42929172]
[1673634838928,1.17926349,19304.0,19303.0,0.42929172]
[1673634839179,1.13808284,19304.0,19303.0,0.42929172]
[1673634839434,1.17581122,19304.0,19303.0,0.94733838]
[1673634839761,1.17581122,19304.0,19303.0,0.9473598]
[1673634840267,1.17897908,19304.0,19303.0,0.9473598]
[1673634840509,1.17897908,19304.0,19303.0,0.71601434]
[1673634840751,1.17393441,19304.0,19303.0,0.71601434]
[1673634841462,1.17393441,19304.0,19303.0,0.9473598]
[1673634841981,1.17393441,19304.0,19303.0,0.71601434]
[1673634842466,1.25547628,19304.0,19303.0,0.19796034]
[1673634842717,2.07350328,19304.0,19303.0,0.04355779]
[1673634843201,2.10056528,19304.0,19303.0,0.04355779]
[1673634843716,1.68317184,19304.0,19303.0,0.04355779]
[1673634843978,1.17618051,19304.0,19303.0,0.19796034]
[1673634844267,1.17618051,19304.0,19303.0,0.4293058]
[1673634844510,1.17618051,19304.0,19303.0,0.9473598]
[1673634847718,1.17618051,19304.0,19303.0,0.79295725]
[1673634847969,1.17618051,19304.0,19303.0,1.10118374]
[1673634849131,1.17618051,19304.0,19303.0,0.79295725]
[1673634849476,1.17618051,19304.0,19303.0,1.10118374]
[1673634850504,1.17618051,19304.0,19303.0,1.61923774]
[1673634850993,1.13808284,19304.0,19303.0,2.10108079]
[1673634851237,1.13801181,19304.0,19303.0,3.13284057]
[1673634851480,0.04775568,19308.0,19304.0,0.1]
[1673634851481,0.08962566,19308.0,19304.0,0.1]
[1673634851724,0.00012,19307.0,19306.0,0.46223382]
[1673634851972,0.00012,19307.0,19306.0,1.82248382]
[1673634852227,0.00012,19307.0,19306.0,1.72795]
[1673634852466,0.04573698,19307.0,19306.0,1.72795]
[1673634852725,0.04573698,19307.0,19306.0,1.62795]
[1673634852960,0.03917135,19307.0,19306.0,2.01283772]
[1673634853204,0.00712,19307.0,19306.0,2.21883772]
[1673634853690,0.007,19307.0,19306.0,2.21883772]
[1673634853930,0.007,19307.0,19306.0,1.83395]
[1673634854177,0.007,19307.0,19306.0,2.44296596]
[1673634854431,0.007,19307.0,19306.0,2.90519978]
[1673634854739,0.007,19307.0,19306.0,2.44296596]
[1673634855503,0.007,19307.0,19306.0,2.72666606]
[1673634855754,0.007,19307.0,19306.0,3.18792266]
[1673634856010,0.007,19307.0,19306.0,2.72666606]
[1673634856742,0.007,19307.0,19306.0,3.18751857]
[1673634857478,0.007,19307.0,19306.0,3.72988547]
[1673634857977,0.007,19307.0,19306.0,3.85694911]
[1673634858221,0.007,19307.0,19306.0,3.18751857]
[1673634858785,0.007,19307.0,19306.0,3.59021857]
[1673634859007,0.0111064,19310.0,19306.0,5.02495127]
[1673634859260,0.0112264,19310.0,19309.0,0.79046915]
[1673634859510,0.0112264,19310.0,19309.0,2.63953221]
[1673634860308,0.0132264,19310.0,19309.0,2.41165703]
[1673634860554,0.0132264,19310.0,19309.0,2.71854756]
[1673634860800,0.0132264,19310.0,19309.0,3.23644221]
[1673634861050,0.0132264,19310.0,19309.0,3.68824304]
[1673634861291,0.0132264,19310.0,19309.0,2.8924348]
[1673634861545,0.0131064,19310.0,19309.0,3.04582524]
[1673634862269,0.0131064,19310.0,19309.0,3.71712524]
[1673634862521,0.0131064,19310.0,19309.0,4.2060413]
[1673634862768,0.0131064,19310.0,19309.0,3.48710472]
[1673634864678,0.0131064,19310.0,19309.0,3.33371428]
[1673634864928,0.0131064,19310.0,19309.0,3.48710472]
[1673634865960,0.0131064,19310.0,19309.0,3.97602078]
[1673634866171,0.0131064,19310.0,19309.0,3.82263034]
[1673634866391,0.0131064,19310.0,19309.0,3.97602078]
[1673634866613,0.0131064,19310.0,19309.0,3.33371428]
[1673634867349,0.0131064,19310.0,19309.0,3.33401428]
[1673634868085,0.0131064,19310.0,19309.0,2.13544]
[1673634868347,0.05301941,19310.0,19309.0,2.04594]
[1673634871280,1.08892974,19310.0,19309.0,2.04594]
[1673634871782,0.0131064,19310.0,19309.0,2.14594]
[1673634873772,0.0131064,19310.0,19309.0,2.74228571]
[1673634874024,0.0131064,19310.0,19309.0,2.98504988]
[1673634875296,0.0131064,19310.0,19309.0,2.83165944]
[1673634875553,0.0131064,19310.0,19309.0,2.73165944]
[1673634875554,1.04892727,19310.0,19309.0,2.73165944]
[1673634875792,0.0131064,19310.0,19309.0,2.73165944]
[1673634876052,1.04892727,19310.0,19309.0,2.73165944]
[1673634876778,1.04892727,19310.0,19309.0,2.64235944]
[1673634877521,1.04892727,19310.0,19309.0,2.04601373]
[1673634877760,1.09766923,19310.0,19309.0,2.04601373]
[1673634878754,1.04892727,19310.0,19309.0,1.72165273]
[1673634878996,1.0865726,19310.0,19309.0,1.72165273]
[1673634879512,1.0865726,19310.0,19309.0,1.721579]
[1673634879758,1.04892727,19310.0,19309.0,2.04594]
[1673634881007,1.04892727,19310.0,19309.0,1.721579]
[1673634882250,1.0488451,19310.0,19309.0,1.721579]
[1673634883304,1.0488451,19310.0,19309.0,1.72165273]
[1673634885688,1.0488451,19310.0,19309.0,1.87504317]
[1673634887109,1.0488451,19310.0,19309.0,2.19940417]
[1673634887350,1.0488451,19310.0,19309.0,2.19933044]
[1673634887603,1.0488451,19310.0,19309.0,2.42935096]
[1673634887845,1.0488451,19310.0,19309.0,2.10498996]
[1673634888600,1.0488451,19310.0,19309.0,2.95957049]
[1673634888875,1.0488451,19310.0,19309.0,3.37420531]
[1673634889157,1.0488451,19310.0,19309.0,3.52700494]
[1673634889394,1.0488451,19310.0,19309.0,2.83651879]
[1673634890142,1.0488451,19310.0,19309.0,2.62435606]
[1673634890396,1.0488451,19310.0,19309.0,4.06676475]
[1673634890663,1.0488451,19310.0,19309.0,3.38424763]
[1673634890905,1.0488451,19310.0,19309.0,2.8954053]
[1673634892070,1.0488451,19310.0,19309.0,3.57792242]
[1673634892306,1.0488451,19310.0,19309.0,4.10415512]
[1673634892572,1.0488451,19310.0,19309.0,4.05473304]
[1673634895324,0.05806886,19313.0,19310.0,0.33619]
[1673634895580,0.05806886,19313.0,19311.0,3.97956944]
[1673634895845,0.01025935,19313.0,19312.0,0.91622794]
[1673634896089,0.01025935,19313.0,19312.0,3.15956774]
[1673634896579,0.01025935,19313.0,19312.0,4.35680044]
[1673634896825,0.01025935,19313.0,19312.0,3.97539664]
[1673634897066,0.01025935,19313.0,19312.0,4.11339664]
[1673634897307,0.01025935,19313.0,19312.0,4.79560044]
[1673634897523,0.01025935,19313.0,19312.0,4.65760044]
[1673634897786,0.01025935,19313.0,19312.0,4.11419664]
[1673634898038,0.01025935,19313.0,19312.0,4.79466187]
[1673634898280,0.01025935,19313.0,19312.0,4.49466187]
[1673634898540,0.01025935,19313.0,19312.0,3.81419664]
[1673634899038,0.01025935,19313.0,19312.0,3.81427035]
[1673634899280,0.01025935,19313.0,19312.0,4.33063093]
[1673634899784,0.01025935,19313.0,19312.0,3.81427035]
[1673634900276,0.01025935,19313.0,19312.0,4.5184399]
[1673634900569,0.01084193,19316.0,19314.0,0.00247725]
[1673634900822,0.01096193,19316.0,19315.0,3.35748081]
[1673634901093,0.01096193,19316.0,19315.0,3.36598081]
[1673634901591,0.01096193,19316.0,19315.0,3.39769264]
[1673634901836,0.01096193,19316.0,19315.0,2.91864685]
[1673634902086,0.01096193,19316.0,19315.0,2.360537]
[1673634902601,0.01096193,19316.0,19315.0,2.74414432]
[1673634902855,0.01084193,19316.0,19315.0,2.74414432]
[1673634903074,0.01084193,19316.0,19315.0,2.88214432]
[1673634903305,0.01084193,19316.0,19315.0,3.77955129]
[1673634903539,0.01084193,19316.0,19315.0,3.47285486]
[1673634904017,0.01084193,19316.0,19315.0,3.47258871]
[1673634904516,0.01084193,19316.0,19315.0,3.08924754]
[1673634904752,0.01084193,19316.0,19315.0,3.47258757]
[1673634905511,0.01084193,19316.0,19315.0,3.77915808]
[1673634905786,0.01084193,19316.0,19315.0,3.47258757]
[1673634906021,0.01084193,19316.0,19315.0,3.44676157]
[1673634907478,0.01084193,19316.0,19315.0,3.49820564]
[1673634907725,0.01084193,19316.0,19315.0,3.95831549]
[1673634908217,0.01084193,19316.0,19315.0,4.65999917]
[1673634908478,0.01084193,19316.0,19315.0,3.95831549]
[1673634908742,0.01084193,19316.0,19315.0,4.66378085]
[1673634909241,0.01084193,19316.0,19315.0,4.71570429]
[1673634909488,0.01084193,19316.0,19315.0,4.25559444]
[1673634909742,0.01084193,19316.0,19315.0,4.04741549]
[1673634909983,0.01084193,19316.0,19315.0,4.64363425]
[1673634910227,0.01084193,19316.0,19315.0,4.04741549]
[1673634910709,0.01084193,19316.0,19315.0,4.65966718]
[1673634911299,0.01084193,19316.0,19315.0,4.10716232]
[1673634911552,0.01084193,19316.0,19315.0,4.34741549]
[1673634911773,0.01084193,19316.0,19315.0,4.04741549]
[1673634912197,0.01084193,19316.0,19315.0,4.34741549]
[1673634913110,0.01084193,19316.0,19315.0,4.5506582]
[1673634913323,0.01084193,19316.0,19315.0,4.04741549]
[1673634913534,0.01084193,19316.0,19315.0,4.34741549]
[1673634915801,0.01171223,19318.0,19316.0,0.1]